fUSD/lending_fUSD_20250113
["ID","MTS","AMOUNT","RATE_DAILY","PERIOD"]
[348758213,1736773866826,-500.0,0.00010545,2]
[348758214,1736773866836,-500.0,0.00010545,2]
[348758215,1736773866845,-500.0,0.00010545,2]
[348758216,1736773866854,-407.55493106,0.00010545,2]
[348758217,1736773866863,-500.0,0.00010545,2]
[348758218,1736773866872,-500.0,0.00010545,2]
[348758219,1736773866881,-500.0,0.00010545,2]
[348758220,1736773866891,-500.0,0.00010545,2]
[348758221,1736773866900,-500.0,0.00010545,2]
[348758222,1736773866910,-500.0,0.00010545,2]
[348758223,1736773866919,-500.0,0.00010545,2]
[348758224,1736773866928,-2825.73,0.00010545,2]
[348758225,1736773866938,-500.0,0.00010545,2]
[348758226,1736773866949,-500.0,0.00010545,2]
[348758227,1736773866958,-500.0,0.00010545,2]
[348758228,1736773866967,-500.0,0.00010545,2]
[348758229,1736773866977,-500.0,0.00010545,2]
[348758230,1736773866986,-500.0,0.00010545,2]
[348758231,1736773866995,-500.0,0.00010545,2]
[348758232,1736773867005,-500.0,0.00010545,2]
[348758233,1736773867014,-500.0,0.00010545,2]
[348758234,1736773867023,-1510.09,0.00010545,2]
[348758235,1736773867033,-253.46754521,0.00010545,2]
[348758236,1736773867042,-500.0,0.00010545,2]
[348758237,1736773867051,-500.0,0.00010545,2]
[348758238,1736773867061,-500.0,0.00010545,2]
[348758239,1736773867070,-500.0,0.00010545,2]
[348758240,1736773867079,-1826.66,0.00010545,2]
[348758241,1736773867089,-500.0,0.00010545,2]
[348758242,1736773867098,-500.0,0.00010545,2]
[348758243,1736773867107,-175.66420089,0.00010545,2]
[348758244,1736773867116,-500.0,0.00010545,2]
[348758245,1736773867125,-2871.47,0.00010545,2]
[348758246,1736773867134,-500.0,0.00010545,2]
[348758247,1736773867144,-500.0,0.00010545,2]
[348758248,1736773867154,-500.0,0.00010545,2]
[348758249,1736773867163,-500.0,0.00010545,2]
[348758250,1736773867172,-500.0,0.00010545,2]
[348758251,1736773867182,-500.0,0.00010545,2]
[348758252,1736773867191,-500.0,0.00010545,2]
[348758253,1736773867201,-500.0,0.00010545,2]
[348758254,1736773867210,-500.0,0.00010545,2]
[348758255,1736773867219,-693.24,0.00010545,2]
[348758256,1736773867229,-1782.35,0.00010545,2]
[348758257,1736773867238,-500.0,0.00010545,2]
[348758258,1736773867247,-500.0,0.00010545,2]
[348758259,1736773867257,-500.0,0.00010545,2]
[348758260,1736773867266,-500.0,0.00010545,2]
[348758261,1736773867275,-500.0,0.00010545,2]
[348758262,1736773867285,-500.0,0.00010545,2]
[348758263,1736773867294,-500.0,0.00010545,2]
[348758264,1736773867304,-3169.42,0.00010545,2]
[348758265,1736773867314,-500.0,0.00010545,2]
[348758266,1736773867324,-347.749056,0.00010545,2]
[348758267,1736773867333,-500.0,0.00010545,2]
[348758268,1736773867343,-500.0,0.00010545,2]
[348758269,1736773867353,-500.0,0.00010545,2]
[348758270,1736773867362,-500.0,0.00010545,2]
[348758271,1736773867372,-643.58747131,0.00010545,2]
[348758272,1736773867386,-500.0,0.00010545,2]
[348758273,1736773867395,-500.0,0.00010545,2]
[348758274,1736773867405,-500.0,0.00010545,2]
[348758275,1736773867415,-500.0,0.00010545,2]
[348758276,1736773867426,-500.0,0.00010545,2]
[348758277,1736773867436,-500.0,0.00010545,2]
[348758278,1736773867446,-500.0,0.00010545,2]
[348758279,1736773867455,-500.0,0.00010545,2]
[348758280,1736773867464,-500.0,0.00010545,2]
[348758281,1736773867473,-500.0,0.00010545,2]
[348758282,1736773867483,-500.0,0.00010545,2]
[348758283,1736773867492,-1235.07,0.00010545,2]
[348758284,1736773867501,-500.0,0.00010545,2]
[348758285,1736773867511,-500.0,0.00010545,2]
[348758286,1736773867520,-500.0,0.00010545,2]
[348758287,1736773867531,-253.93544278,0.00010545,2]
[348758288,1736773867540,-500.0,0.00010545,2]
[348758289,1736773867549,-502.81916589,0.00010545,2]
[348758290,1736773867559,-500.0,0.00010545,2]
[348758291,1736773867568,-500.0,0.00010545,2]
[348758292,1736773867577,-491.07045502,0.00010545,2]
[348758293,1736773867587,-500.0,0.00010545,2]
[348758294,1736773867597,-503.72562399,0.00010545,2]
[348758295,1736773867606,-500.0,0.00010545,2]
[348758296,1736773867615,-500.0,0.00010545,2]
[348758297,1736773867624,-500.0,0.00010545,2]
[348758298,1736773867636,-1160.03,0.00010545,2]
[348758299,1736773867646,-500.0,0.00010545,2]
[348758300,1736773867655,-500.0,0.00010545,2]
[348758301,1736773867665,-500.0,0.00010545,2]
[348758302,1736773867674,-500.0,0.00010545,2]
[348758303,1736773867684,-500.0,0.00010545,2]
[348758304,1736773867693,-1125.93,0.00010545,2]
[348758305,1736773867702,-5000.0,0.00010545,2]
[348758306,1736773867712,-500.0,0.00010545,2]
[348758307,1736773867722,-615.56,0.00010545,2]
[348758308,1736773867731,-179.99,0.00010545,2]
[348758309,1736773867741,-500.0,0.00010545,2]
[348758310,1736773867750,-1116.03,0.00010545,2]
[348758311,1736773867760,-500.0,0.00010545,2]
[348758312,1736773867769,-312.22104667,0.00010545,2]
[348758313,1736773867779,-500.0,0.00010545,2]
[348758314,1736773867788,-500.0,0.00010545,2]
[348758315,1736773867798,-500.0,0.00010545,2]
[348758316,1736773867808,-2597.04,0.00010545,2]
[348758317,1736773867819,-500.0,0.00010545,2]
[348758318,1736773867829,-1276.94,0.00010545,2]
[348758319,1736773867838,-1862.47,0.00010545,2]
[348758320,1736773867849,-1136.25,0.00010545,2]
[348758321,1736773867860,-1424.75,0.00010545,2]
[348758322,1736773867870,-500.0,0.00010545,2]
[348758323,1736773867882,-1275.12,0.00010545,2]
[348758324,1736773867895,-1790.95,0.00010545,2]
[348758325,1736773867905,-1239.65,0.00010545,2]
[348758326,1736773867916,-741.7,0.00010545,2]
[348758327,1736773867928,-647.88,0.00010545,2]
[348758328,1736773867939,-824.22,0.00010545,2]
[348758329,1736773867951,-751.33,0.00010545,2]
[348758330,1736773867962,-947.03,0.00010545,2]
[348758331,1736773867973,-500.0,0.00010545,2]
[348758332,1736773867984,-500.0,0.00010545,2]
[348758333,1736773867994,-1247.15,0.00010546,2]
[348758334,1736773868005,-1195.6,0.00010546,2]
[348758335,1736773868016,-1524.39,0.00010546,2]
[348758336,1736773868027,-1983.77,0.00010546,2]
[348758337,1736773868038,-5457.9,0.00010546,2]
[348758338,1736773868049,-757.28,0.00010546,2]
[348758339,1736773868060,-636.79,0.00010546,2]
[348758340,1736773868071,-519.85,0.00010546,2]
[348758341,1736773868082,-2164.57,0.00010546,2]
[348758342,1736773868092,-500.0,0.00010546,2]
[348758343,1736773868102,-549.45,0.00010546,2]
[348758344,1736773868112,-1372.06,0.00010546,2]
[348758345,1736773868123,-818.41,0.00010546,2]
[348758346,1736773868133,-500.0,0.00010547,2]
[348758347,1736773868144,-1000.0,0.00010547,2]
[348758348,1736773868154,-735.27,0.00010547,2]
[348758349,1736773868165,-500.0,0.00010547,2]
[348758350,1736773868175,-1122.61,0.00010547,2]
[348758351,1736773868185,-200.99,0.00010552,2]
[348758352,1736773868194,-429.82131162,0.00010606,2]
[348758353,1736773868204,-2068.98334803,0.00010614,2]
[348758354,1736773868213,-166.50549518,0.00010667,2]
[348758355,1736773868223,-500.0,0.00010684,2]
[348758356,1736773868233,-28817.38210807,0.00010685,2]
[348758357,1736773868244,-150.0,0.00010726,2]
[348758358,1736773868253,-158.051,0.00010732,2]
[348758359,1736773868263,-163.351,0.00010732,2]
[348758360,1736773868272,-150.0,0.00010732,2]
[348758361,1736773868282,-150.0,0.00010732,2]
[348758362,1736773868293,-205.061,0.00010732,2]
[348758363,1736773868303,-199.674,0.00010732,2]
[348758364,1736773868312,-154.25,0.00010732,2]
[348758365,1736773868321,-1268.0,0.00010732,2]
[348758366,1736773868331,-2016.0,0.00010732,2]
[348758367,1736773868340,-150.241,0.00010732,2]
[348758368,1736773868349,-567.439,0.00010732,2]
[348758369,1736773868358,-635.0,0.00010732,2]
[348758370,1736773868368,-1861.0,0.00010732,2]
[348758371,1736773868380,-1259.0,0.00010732,2]
[348758372,1736773868389,-2944.0,0.00010732,2]
[348758373,1736773868398,-914.0,0.00010732,2]
[348758374,1736773868408,-820.0,0.00010732,2]
[348758375,1736773868418,-3979.0,0.00010732,2]
[348758376,1736773868428,-538.143,0.00010732,2]
[348758377,1736773868437,-2068.98334803,0.00010748,2]
[348758378,1736773868447,-270.0,0.0001079,2]
[348758379,1736773868457,-339.0,0.0001079,2]
[348758380,1736773868467,-1495.77,0.00010817,2]
[348758381,1736773868476,-4901.24,0.00010817,2]
[348758382,1736773868485,-500.0,0.00010817,2]
[348758383,1736773868639,-516.84,0.00010817,2]
[348758384,1736773868649,-500.0,0.00010817,2]
[348758385,1736773868661,-1154.59,0.00010817,2]
[348758386,1736773868671,-721.36,0.00010817,2]
[348758387,1736773868680,-1250.94,0.00010817,2]
[348758388,1736773868689,-2172.52,0.00010817,2]
[348758389,1736773868699,-500.0,0.00010817,2]
[348758390,1736773868708,-1739.31,0.00010817,2]
[348758391,1736773868717,-3812.19,0.00010817,2]
[348758392,1736773868726,-1080.68,0.00010817,2]
[348758393,1736773868736,-2146.84,0.00010817,2]
[348758394,1736773868746,-2120.16,0.00010817,2]
[348758395,1736773868756,-557.28,0.00010817,2]
[348758396,1736773868765,-1818.87,0.00010817,2]
[348758397,1736773868774,-1556.94,0.00010817,2]
[348758398,1736773868783,-1241.83,0.00010817,2]
[348758399,1736773868793,-1422.81,0.00010817,2]
[348758400,1736773868803,-1316.25,0.00010817,2]
[348758401,1736773868812,-925.83,0.00010817,2]
[348758402,1736773868821,-2186.15,0.00010817,2]
[348758403,1736773868831,-997.96,0.00010817,2]
[348758404,1736773868840,-500.0,0.00010817,2]
[348758405,1736773868849,-837.48,0.00010817,2]
[348758406,1736773868858,-626.28,0.00010817,2]
[348758407,1736773868867,-7410.188323,0.00010817,2]
[348758408,1736773868876,-500.0,0.00010817,2]
[348758409,1736773868885,-1772.62,0.00010817,2]
[348758410,1736773868895,-2877.55,0.00010817,2]
[348758411,1736773868904,-1607.66,0.00010817,2]
[348758412,1736773868913,-500.0,0.00010817,2]
[348758413,1736773868922,-7387.105802,0.00010817,2]
[348758414,1736773868932,-1598.47,0.00010817,2]
[348758415,1736773868941,-500.0,0.00010817,2]
[348758416,1736773868951,-500.0,0.00010817,2]
[348758417,1736773868960,-162.553205,0.00010817,2]
[348758418,1736773868969,-500.0,0.00010817,2]
[348758419,1736773868979,-840.88,0.00010817,2]
[348758420,1736773868988,-585.74528338,0.00010817,2]
[348758421,1736773868998,-4142.48,0.00010817,2]
[348758422,1736773869007,-643.25,0.00010817,2]
[348758423,1736773869016,-643.95,0.00010817,2]
[348758424,1736773869025,-515.21,0.00010817,2]
[348758425,1736773869034,-1547.88,0.00010817,2]
[348758426,1736773869044,-500.0,0.00010818,2]
[348758427,1736773869053,-500.0,0.00010818,2]
[348758428,1736773869062,-500.0,0.00010818,2]
[348758429,1736773869071,-500.0,0.00010818,2]
[348758430,1736773869080,-562.07,0.00010818,2]
[348758431,1736773869089,-500.0,0.00010818,2]
[348758432,1736773869098,-565.59,0.00010818,2]
[348758433,1736773869107,-500.0,0.00010818,2]
[348758434,1736773869117,-500.0,0.00010818,2]
[348758435,1736773869126,-500.0,0.00010818,2]
[348758436,1736773869135,-500.0,0.00010818,2]
[348758437,1736773869144,-500.0,0.00010818,2]
[348758438,1736773869154,-500.0,0.00010818,2]
[348758439,1736773869163,-500.0,0.00010818,2]
[348758440,1736773869172,-500.0,0.00010818,2]
[348758441,1736773869182,-500.0,0.00010818,2]
[348758442,1736773869191,-500.0,0.00010818,2]
[348758443,1736773869200,-500.0,0.00010818,2]
[348758444,1736773869210,-500.0,0.00010818,2]
[348758445,1736773869219,-500.0,0.00010818,2]
[348758446,1736773869229,-500.0,0.00010818,2]
[348758447,1736773869238,-500.0,0.00010818,2]
[348758448,1736773869247,-500.0,0.00010818,2]
[348758449,1736773869256,-500.0,0.00010818,2]
[348758450,1736773869266,-500.0,0.00010818,2]
[348758451,1736773869276,-500.0,0.00010818,2]
[348758452,1736773869285,-500.0,0.00010818,2]
[348758453,1736773869295,-508.72,0.00010818,2]
[348758454,1736773869304,-500.0,0.00010818,2]
[348758455,1736773869314,-500.0,0.00010818,2]
[348758456,1736773869323,-500.0,0.00010818,2]
[348758457,1736773869334,-500.0,0.00010818,2]
[348758458,1736773869344,-500.0,0.00010818,2]
[348758459,1736773869354,-500.0,0.00010818,2]
[348758460,1736773869364,-500.0,0.00010818,2]
[348758461,1736773869374,-500.0,0.00010818,2]
[348758462,1736773869386,-500.0,0.00010818,2]
[348758463,1736773869397,-508.86,0.00010818,2]
[348758464,1736773869407,-500.0,0.00010818,2]
[348758465,1736773869417,-500.0,0.00010818,2]
[348758466,1736773869427,-500.0,0.00010818,2]
[348758467,1736773869437,-500.0,0.00010818,2]
[348758468,1736773869448,-500.0,0.00010818,2]
[348758469,1736773869459,-500.0,0.00010818,2]
[348758470,1736773869469,-576.26879732,0.00010818,2]
[348758471,1736773869480,-500.0,0.00010818,2]
[348758472,1736773869490,-500.0,0.00010818,2]
[348758473,1736773869501,-500.0,0.00010818,2]
[348758474,1736773869511,-500.0,0.00010818,2]
[348758475,1736773869522,-500.0,0.00010818,2]
[348758476,1736773869532,-794.81,0.00010818,2]
[348758477,1736773869541,-500.0,0.00010818,2]
[348758478,1736773869551,-500.0,0.00010818,2]
[348758479,1736773869562,-500.0,0.00010818,2]
[348758480,1736773869572,-582.11,0.00010818,2]
[348758481,1736773869582,-500.0,0.00010818,2]
[348758482,1736773869592,-500.0,0.00010818,2]
[348758483,1736773869603,-500.0,0.00010818,2]
[348758484,1736773869614,-894.21,0.00010818,2]
[348758485,1736773869625,-649.99836133,0.00010818,2]
[348758486,1736773869635,-500.0,0.00010818,2]
[348758487,1736773869646,-500.0,0.00010818,2]
[348758488,1736773869656,-500.0,0.00010818,2]
[348758489,1736773869665,-624.72,0.00010818,2]
[348758490,1736773869675,-500.0,0.00010818,2]
[348758491,1736773869684,-500.0,0.00010818,2]
[348758492,1736773869695,-205.42918953,0.00010818,2]
[348758493,1736773869705,-500.0,0.00010818,2]
[348758494,1736773869715,-500.0,0.00010818,2]
[348758495,1736773869724,-573.56,0.00010818,2]
[348758496,1736773869734,-874.55,0.00010818,2]
[348758497,1736773869743,-500.0,0.00010818,2]
[348758498,1736773869753,-500.0,0.00010818,2]
[348758499,1736773869762,-500.0,0.00010818,2]
[348758500,1736773869771,-500.0,0.00010818,2]
[348758501,1736773869781,-473.54683758,0.00010818,2]
[348758502,1736773869792,-500.0,0.00010818,2]
[348758503,1736773869802,-500.0,0.00010818,2]
[348758504,1736773869812,-500.0,0.00010818,2]
[348758505,1736773869822,-500.0,0.00010818,2]
[348758506,1736773869833,-500.0,0.00010818,2]
[348758507,1736773869842,-500.0,0.00010818,2]
[348758508,1736773869852,-500.0,0.00010818,2]
[348758509,1736773869861,-500.0,0.00010818,2]
[348758510,1736773869871,-500.0,0.00010818,2]
[348758511,1736773869881,-500.0,0.00010818,2]
[348758512,1736773869891,-500.0,0.00010818,2]
[348758513,1736773869900,-864.18,0.00010818,2]
[348758514,1736773869909,-569.34,0.00010818,2]
[348758515,1736773869919,-500.0,0.00010818,2]
[348758516,1736773869928,-500.0,0.00010818,2]
[348758517,1736773869937,-500.0,0.00010818,2]
[348758518,1736773869946,-500.0,0.00010818,2]
[348758519,1736773869956,-500.0,0.00010818,2]
[348758520,1736773869965,-566.55,0.00010818,2]
[348758521,1736773869976,-500.0,0.00010818,2]
[348758522,1736773869990,-500.0,0.00010818,2]
[348758523,1736773870001,-500.0,0.00010818,2]
[348758524,1736773870011,-500.0,0.00010818,2]
[348758525,1736773870021,-613.92,0.00010818,2]
[348758526,1736773870030,-500.0,0.00010818,2]
[348758527,1736773870039,-665.78,0.00010818,2]
[348758528,1736773870049,-500.0,0.00010818,2]
[348758529,1736773870058,-634.07,0.00010818,2]
[348758530,1736773870068,-670.59,0.00010818,2]
[348758531,1736773870078,-500.0,0.00010818,2]
[348758532,1736773870088,-551.16912667,0.00010818,2]
[348758533,1736773870104,-500.0,0.00010818,2]
[348758534,1736773870113,-500.0,0.00010818,2]
[348758535,1736773870122,-500.0,0.00010818,2]
[348758536,1736773870132,-628.8,0.00010818,2]
[348758537,1736773870141,-959.46,0.00010818,2]
[348758538,1736773870150,-796.53,0.00010818,2]
[348758539,1736773870159,-500.0,0.00010818,2]
[348758540,1736773870168,-689.68,0.00010818,2]
[348758541,1736773870178,-500.0,0.00010818,2]
[348758542,1736773870187,-500.0,0.00010818,2]
[348758543,1736773870196,-500.0,0.00010818,2]
[348758544,1736773870207,-500.0,0.00010818,2]
[348758545,1736773870216,-708.66,0.00010818,2]
[348758546,1736773870226,-500.0,0.00010818,2]
[348758547,1736773870236,-462.28764774,0.00010818,2]
[348758548,1736773870245,-500.0,0.00010818,2]
[348758549,1736773870255,-552.24,0.00010818,2]
[348758550,1736773870264,-500.0,0.00010818,2]
[348758551,1736773870274,-500.0,0.00010818,2]
[348758552,1736773870283,-400.81384962,0.00010818,2]
[348758553,1736773870292,-500.0,0.00010818,2]
[348758554,1736773870302,-808.9,0.00010818,2]
[348758555,1736773870312,-500.0,0.00010818,2]
[348758556,1736773870327,-500.0,0.00010818,2]
[348758557,1736773870340,-500.0,0.00010818,2]
[348758558,1736773870349,-500.0,0.00010818,2]
[348758559,1736773870359,-500.0,0.00010818,2]
[348758560,1736773870371,-500.0,0.00010818,2]
[348758561,1736773870383,-500.0,0.00010818,2]
[348758562,1736773870400,-500.0,0.00010818,2]
[348758563,1736773870416,-645.79,0.00010818,2]
[348758564,1736773870425,-500.0,0.00010818,2]
[348758565,1736773870436,-500.0,0.00010818,2]
[348758566,1736773870447,-500.0,0.00010818,2]
[348758567,1736773870458,-500.0,0.00010818,2]
[348758568,1736773870470,-500.0,0.00010818,2]
[348758569,1736773870480,-500.0,0.00010818,2]
[348758570,1736773870490,-500.0,0.00010818,2]
[348758571,1736773870499,-500.0,0.00010818,2]
[348758572,1736773870509,-500.0,0.00010818,2]
[348758573,1736773870518,-843.32,0.00010818,2]
[348758574,1736773870528,-500.0,0.00010818,2]
[348758575,1736773870538,-500.0,0.00010818,2]
[348758576,1736773870547,-500.0,0.00010818,2]
[348758577,1736773870557,-500.0,0.00010818,2]
[348758578,1736773870567,-500.0,0.00010818,2]
[348758579,1736773870577,-785.37,0.00010818,2]
[348758580,1736773870587,-500.0,0.00010818,2]
[348758581,1736773870597,-500.0,0.00010818,2]
[348758582,1736773870607,-500.0,0.00010818,2]
[348758583,1736773870616,-500.0,0.00010818,2]
[348758584,1736773870627,-500.0,0.00010818,2]
[348758585,1736773870637,-500.0,0.00010818,2]
[348758586,1736773870647,-742.44,0.00010818,2]
[348758587,1736773870657,-500.0,0.00010818,2]
[348758588,1736773870667,-2944.45,0.00010818,2]
[348758589,1736773870677,-500.0,0.00010818,2]
[348758590,1736773870686,-500.0,0.00010818,2]
[348758591,1736773870697,-505.19565234,0.00010818,2]
[348758592,1736773870706,-500.0,0.00010818,2]
[348758593,1736773870716,-596.72,0.00010818,2]
[348758594,1736773870726,-500.0,0.00010818,2]
[348758595,1736773870736,-500.0,0.00010818,2]
[348758596,1736773870745,-450.45878964,0.00010818,2]
[348758597,1736773870755,-500.0,0.00010818,2]
[348758598,1736773870764,-2529.0,0.00010818,2]
[348758599,1736773870774,-500.0,0.00010818,2]
[348758600,1736773870785,-500.0,0.00010818,2]
[348758601,1736773870794,-500.0,0.00010818,2]
[348758602,1736773870805,-539.46333835,0.00010818,2]
[348758603,1736773870815,-500.0,0.00010818,2]
[348758604,1736773870825,-500.0,0.00010818,2]
[348758605,1736773870834,-500.0,0.00010818,2]
[348758606,1736773870844,-500.0,0.00010818,2]
[348758607,1736773870854,-500.0,0.00010818,2]
[348758608,1736773870864,-520.9,0.00010818,2]
[348758609,1736773870874,-500.0,0.00010818,2]
[348758610,1736773870884,-500.0,0.00010818,2]
[348758611,1736773870894,-500.0,0.00010818,2]
[348758612,1736773870904,-500.0,0.00010818,2]
[348758613,1736773871078,-500.0,0.00010818,2]
[348758614,1736773871088,-500.0,0.00010818,2]
[348758615,1736773871098,-500.0,0.00010818,2]
[348758616,1736773871108,-500.0,0.00010818,2]
[348758617,1736773871118,-500.0,0.00010818,2]
[348758618,1736773871128,-500.0,0.00010818,2]
[348758619,1736773871136,-500.0,0.00010818,2]
[348758620,1736773871146,-833.59,0.00010818,2]
[348758621,1736773871155,-500.0,0.00010818,2]
[348758622,1736773871166,-500.0,0.00010818,2]
[348758623,1736773871175,-500.0,0.00010818,2]
[348758624,1736773871185,-500.0,0.00010818,2]
[348758625,1736773871194,-500.0,0.00010818,2]
[348758626,1736773871204,-500.0,0.00010818,2]
[348758627,1736773871214,-702.94,0.00010818,2]
[348758628,1736773871223,-611.22,0.00010818,2]
[348758629,1736773871233,-500.0,0.00010818,2]
[348758630,1736773871242,-500.0,0.00010818,2]
[348758631,1736773871251,-500.0,0.00010818,2]
[348758632,1736773871261,-500.0,0.00010818,2]
[348758633,1736773871270,-286.29320418,0.00010818,2]
[348758634,1736773871280,-500.0,0.00010818,2]
[348758635,1736773871290,-500.0,0.00010818,2]
[348758636,1736773871300,-500.0,0.00010818,2]
[348758637,1736773871310,-500.0,0.00010818,2]
[348758638,1736773871320,-500.0,0.00010818,2]
[348758639,1736773871330,-500.0,0.00010818,2]
[348758640,1736773871340,-500.0,0.00010818,2]
[348758641,1736773871350,-500.0,0.00010818,2]
[348758642,1736773871359,-500.0,0.00010818,2]
[348758643,1736773871370,-500.0,0.00010818,2]
[348758644,1736773871380,-500.0,0.00010818,2]
[348758645,1736773871397,-500.0,0.00010818,2]
[348758646,1736773871408,-617.83,0.00010818,2]
[348758647,1736773871419,-534.03933873,0.00010818,2]
[348758648,1736773871429,-545.27,0.00010818,2]
[348758649,1736773871438,-500.0,0.00010818,2]
[348758650,1736773871448,-500.0,0.00010818,2]
[348758651,1736773871461,-500.0,0.00010818,2]
[348758652,1736773871473,-500.0,0.00010818,2]
[348758653,1736773871484,-500.0,0.00010818,2]
[348758654,1736773871495,-500.0,0.00010818,2]
[348758655,1736773871507,-500.0,0.00010818,2]
[348758656,1736773871518,-500.0,0.00010818,2]
[348758657,1736773871528,-500.0,0.00010818,2]
[348758658,1736773871539,-500.0,0.00010818,2]
[348758659,1736773871549,-500.0,0.00010818,2]
[348758660,1736773871560,-500.0,0.00010818,2]
[348758661,1736773871570,-500.0,0.00010818,2]
[348758662,1736773871580,-735.29,0.00010818,2]
[348758663,1736773871590,-500.0,0.00010818,2]
[348758664,1736773871600,-500.0,0.00010818,2]
[348758665,1736773871610,-500.0,0.00010818,2]
[348758666,1736773871620,-500.0,0.00010818,2]
[348758667,1736773871630,-500.0,0.00010818,2]
[348758668,1736773871640,-500.0,0.00010818,2]
[348758669,1736773871649,-500.0,0.00010818,2]
[348758670,1736773871659,-500.0,0.00010818,2]
[348758671,1736773871669,-500.0,0.00010818,2]
[348758672,1736773871679,-640.8,0.00010818,2]
[348758673,1736773871690,-500.0,0.00010818,2]
[348758674,1736773871700,-500.0,0.00010818,2]
[348758675,1736773871709,-500.0,0.00010818,2]
[348758676,1736773871720,-500.0,0.00010818,2]
[348758677,1736773871730,-500.0,0.00010818,2]
[348758678,1736773871740,-500.0,0.00010818,2]
[348758679,1736773871749,-500.0,0.00010818,2]
[348758680,1736773871759,-500.0,0.00010818,2]
[348758681,1736773871769,-500.0,0.00010818,2]
[348758682,1736773871784,-567.68,0.00010818,2]
[348758683,1736773871794,-500.0,0.00010818,2]
[348758684,1736773871804,-500.0,0.00010818,2]
[348758685,1736773871814,-500.0,0.00010818,2]
[348758686,1736773871824,-500.0,0.00010818,2]
[348758687,1736773871834,-500.0,0.00010818,2]
[348758688,1736773871844,-500.0,0.00010818,2]
[348758689,1736773871855,-500.0,0.00010818,2]
[348758690,1736773871864,-500.0,0.00010818,2]
[348758691,1736773871875,-500.0,0.00010818,2]
[348758692,1736773871887,-500.0,0.00010818,2]
[348758693,1736773871897,-500.0,0.00010818,2]
[348758694,1736773871907,-500.0,0.00010818,2]
[348758695,1736773871917,-194.58132011,0.00010818,2]
[348758696,1736773871927,-500.0,0.00010818,2]
[348758697,1736773871937,-500.0,0.00010818,2]
[348758698,1736773871947,-500.0,0.00010818,2]
[348758699,1736773871957,-500.0,0.00010818,2]
[348758700,1736773871967,-500.0,0.00010818,2]
[348758701,1736773871976,-500.0,0.00010818,2]
[348758702,1736773871986,-500.0,0.00010818,2]
[348758703,1736773871996,-500.0,0.00010818,2]
[348758704,1736773872006,-500.0,0.00010818,2]
[348758705,1736773872016,-500.0,0.00010818,2]
[348758706,1736773872025,-500.0,0.00010818,2]
[348758707,1736773872035,-500.0,0.00010818,2]
[348758708,1736773872044,-500.0,0.00010818,2]
[348758709,1736773872054,-500.0,0.00010818,2]
[348758710,1736773872063,-500.0,0.00010818,2]
[348758711,1736773872072,-500.0,0.00010818,2]
[348758712,1736773872082,-500.0,0.00010818,2]